[Event "Latvijas 2022. gada jauniešu čempionāta fināls"]
[Site "Riga, Latvia"]
[Date "2022.06.16"]
[Round "8.10"]
[White "Stare, Evelina"]
[Black "Jansone, Melanija Luize"]
[Result "0-1"]
[TimeControl "3600+30"]
[WhiteElo "1167"]
[BlackElo "1590"]

1. e4 {[%clk 01:00:58]} {[%emt 00:00:01]} d6 {[%clk 01:00:55]} {[%emt
00:00:05]} 2. Nf3 {[%clk 01:01:14]} {[%emt 00:00:14]} Nf6 {[%clk 01:01:20]}
{[%emt 00:00:05]} 3. Bc4 {[%clk 01:01:28]} {[%emt 00:00:17]} Nxe4 {[%clk
01:01:15]} {[%emt 00:00:34]} 4. d3 {[%clk 01:01:23]} {[%emt 00:00:35]} Nf6
{[%clk 01:01:40]} {[%emt 00:00:05]} 5. O-O {[%clk 01:01:29]} {[%emt 00:00:25]}
g6 {[%clk 01:02:05]} {[%emt 00:00:04]} 6. Re1 {[%clk 01:01:30]} {[%emt
00:00:29]} Bg7 {[%clk 01:02:27]} {[%emt 00:00:08]} 7. Bg5 {[%clk 01:01:28]}
{[%emt 00:00:32]} O-O {[%clk 01:02:48]} {[%emt 00:00:08]} 8. Nc3 {[%clk
01:01:09]} {[%emt 00:00:50]} c5 {[%clk 01:03:08]} {[%emt 00:00:10]} 9. Bxf6
{[%clk 01:00:03]} {[%emt 00:01:36]} Bxf6 {[%clk 01:02:34]} {[%emt 00:01:04]} 10.
Qd2 {[%clk 00:59:05]} {[%emt 00:01:28]} Nc6 {[%clk 01:02:40]} {[%emt 00:00:24]}
11. Rab1 {[%clk 00:58:21]} {[%emt 00:01:13]} a6 {[%clk 01:02:29]} {[%emt
00:00:43]} 12. Nd5 {[%clk 00:55:23]} {[%emt 00:03:27]} Bg7 {[%clk 01:02:49]}
{[%emt 00:00:10]} 13. Qe3 {[%clk 00:52:59]} {[%emt 00:02:53]} e6 {[%clk
01:02:54]} {[%emt 00:00:26]} 14. Nf4 {[%clk 00:52:35]} {[%emt 00:00:51]} d5
{[%clk 01:02:31]} {[%emt 00:00:55]} 15. Bb3 {[%clk 00:52:17]} {[%emt 00:00:48]}
Qd6 {[%clk 01:01:00]} {[%emt 00:02:02]} 16. Qd2 {[%clk 00:50:19]} {[%emt
00:02:28]} Bh6 {[%clk 00:57:24]} {[%emt 00:04:07]} 17. g3 {[%clk 00:49:47]}
{[%emt 00:01:02]} e5 {[%clk 00:56:06]} {[%emt 00:01:47]} 18. Re2 {[%clk
00:45:34]} {[%emt 00:04:43]} exf4 {[%clk 00:56:23]} {[%emt 00:00:13]} 19. Rbe1
{[%clk 00:45:25]} {[%emt 00:00:36]} Bg4 {[%clk 00:55:56]} {[%emt 00:00:59]} 20.
Kg2 {[%clk 00:45:03]} {[%emt 00:00:52]} Nd4 {[%clk 00:55:49]} {[%emt 00:00:37]}
21. Kf1 {[%clk 00:38:03]} {[%emt 00:07:29]} Bh3+ {[%clk 00:56:06]} {[%emt
00:00:14]} 22. Kg1 {[%clk 00:37:53]} {[%emt 00:00:41]} Nxf3+ {[%clk 00:56:31]}
{[%emt 00:00:05]} 23. Kh1 {[%clk 00:38:11]} {[%emt 00:00:12]} Nxd2 {[%clk
00:56:57]} {[%emt 00:00:04]} 24. Rxd2 {[%clk 00:38:20]} {[%emt 00:00:22]} fxg3
{[%clk 00:57:22]} {[%emt 00:00:04]} 25. Rde2 {[%clk 00:38:15]} {[%emt
00:00:35]} c4 {[%clk 00:57:23]} {[%emt 00:00:29]} 26. dxc4 {[%clk 00:38:15]}
{[%emt 00:00:30]} dxc4 {[%clk 00:57:46]} {[%emt 00:00:08]} 27. Bxc4 {[%clk
00:38:35]} {[%emt 00:00:10]} Qc6+ {[%clk 00:58:02]} {[%emt 00:00:14]} 28. f3
{[%clk 00:38:22]} {[%emt 00:00:42]} Qxf3+ {[%clk 00:57:58]} {[%emt 00:00:34]}
29. Kg1 {[%clk 00:38:21]} {[%emt 00:00:31]} gxh2+ {[%clk 00:58:22]} {[%emt
00:00:06]} 30. Rxh2 {[%clk 00:38:30]} {[%emt 00:00:21]} Be3+ {[%clk 00:58:47]}
{[%emt 00:00:06]} 31. Rxe3 {[%clk 00:38:25]} {[%emt 00:00:35]} Qxe3+ {[%clk
00:59:13]} {[%emt 00:00:03]} 32. Rf2 {[%clk 00:38:25]} {[%emt 00:00:30]} Qg3+
{[%clk 00:59:36]} {[%emt 00:00:06]} 33. Rg2 {[%clk 00:37:54]} {[%emt 00:01:02]}
Qxg2# {[%clk 01:00:00]} {[%emt 00:00:05]} 0-1

[Event "Latvijas 2022. gada jauniešu čempionāta fināls"]
[Site "Riga, Latvia"]
[Date "2022.06.16"]
[Round "8.11"]
[White "Skreitule, Undine"]
[Black "Kuznecova, Marija"]
[Result "0-1"]
[TimeControl "3600+30"]
[WhiteElo "1192"]
[BlackElo "1783"]

1. d4 {[%clk 01:00:30]} {[%emt 00:54:32]} Nf6 {[%clk 01:00:30]} {[%emt
00:00:05]} 2. Nf3 {[%clk 01:00:35]} {[%emt 00:00:27]} c5 {[%clk 01:00:54]}
{[%emt 00:00:07]} 3. c3 {[%clk 00:59:26]} {[%emt 00:01:40]} d5 {[%clk
01:00:56]} {[%emt 00:00:27]} 4. Bf4 {[%clk 00:58:53]} {[%emt 00:01:03]} Nc6
{[%clk 01:01:19]} {[%emt 00:00:08]} 5. e3 {[%clk 00:58:31]} {[%emt 00:00:51]}
Qb6 {[%clk 01:01:29]} {[%emt 00:00:21]} 6. Qb3 {[%clk 00:57:01]} {[%emt
00:01:58]} c4 {[%clk 01:01:39]} {[%emt 00:00:21]} 7. Qxb6 {[%clk 00:55:37]}
{[%emt 00:01:54]} axb6 {[%clk 01:02:02]} {[%emt 00:00:07]} 8. Na3 {[%clk
00:55:25]} {[%emt 00:00:42]} Bf5 {[%clk 00:56:19]} {[%emt 00:06:13]} 9. Ne5
{[%clk 00:51:04]} {[%emt 00:04:51]} Nxe5 {[%clk 00:54:21]} {[%emt 00:02:29]} 10.
Bxe5 {[%clk 00:51:20]} {[%emt 00:00:14]} Kd7 {[%clk 00:51:13]} {[%emt
00:03:37]} 11. f3 {[%clk 00:47:59]} {[%emt 00:03:51]} e6 {[%clk 00:48:47]}
{[%emt 00:02:57]} 12. Nb1 {[%clk 00:39:38]} {[%emt 00:08:52]} Bxb1 {[%clk
00:46:41]} {[%emt 00:02:35]} 13. Rxb1 {[%clk 00:39:55]} {[%emt 00:00:13]} Rxa2
{[%clk 00:47:06]} {[%emt 00:00:05]} 14. Bxf6 {[%clk 00:39:59]} {[%emt
00:00:25]} gxf6 {[%clk 00:47:30]} {[%emt 00:00:06]} 15. Be2 {[%clk 00:40:00]}
{[%emt 00:00:30]} b5 {[%clk 00:47:03]} {[%emt 00:00:56]} 16. O-O {[%clk
00:39:53]} {[%emt 00:00:38]} b4 {[%clk 00:45:31]} {[%emt 00:02:02]} 17. Rf2
{[%clk 00:38:26]} {[%emt 00:01:57]} Kc6 {[%clk 00:42:57]} {[%emt 00:03:04]} 18.
e4 {[%emt 00:01:48]} Bd6 {[%clk 00:39:32]} {[%emt 00:03:49]} 19. cxb4 {[%clk
00:33:51]} {[%emt 00:03:53]} Bxb4 {[%clk 00:39:56]} {[%emt 00:00:06]} 20. Bf1
{[%clk 00:31:42]} {[%emt 00:02:38]} Rha8 {[%clk 00:36:45]} {[%emt 00:03:41]} 21.
g3 {[%clk 00:27:34]} {[%emt 00:04:38]} Ra1 {[%clk 00:34:46]} {[%emt 00:02:29]}
22. Rxa1 {[%clk 00:26:25]} {[%emt 00:01:40]} Rxa1 {[%clk 00:35:14]} {[%emt
00:00:01]} 23. Re2 {[%emt 00:01:17]} Rd1 {[%clk 00:34:24]} {[%emt 00:00:28]} 24.
exd5+ {[%clk 00:25:28]} {[%emt 00:01:32]} exd5 {[%clk 00:30:33]} {[%emt
00:04:21]} 25. f4 {[%clk 00:25:03]} {[%emt 00:00:54]} Rxd4 {[%clk 00:30:31]}
{[%emt 00:00:33]} 26. Rc2 {[%clk 00:24:09]} {[%emt 00:01:24]} Kc5 {[%clk
00:29:26]} {[%emt 00:01:35]} 27. Rc1 {[%clk 00:23:21]} {[%emt 00:01:18]} Rd2
{[%clk 00:29:22]} {[%emt 00:00:34]} 28. b3 {[%clk 00:23:39]} {[%emt 00:00:12]}
b5 {[%clk 00:29:02]} {[%emt 00:00:51]} 29. h3 {[%clk 00:23:38]} {[%emt
00:00:30]} Ba3 {[%clk 00:28:37]} {[%emt 00:00:54]} 30. Rc3 {[%clk 00:23:01]}
{[%emt 00:01:06]} b4 {[%clk 00:28:39]} {[%emt 00:00:31]} 31. Re3 {[%clk
00:23:00]} {[%emt 00:00:23]} Kd4 {[%clk 00:28:28]} {[%emt 00:00:47]} 32. Re7
{[%clk 00:23:06]} {[%emt 00:00:24]} cxb3 {[%clk 00:28:39]} {[%emt 00:00:19]} 33.
Rxf7 {[%clk 00:22:44]} {[%emt 00:00:53]} b2 {[%clk 00:29:01]} {[%emt 00:00:08]}
34. Rxf6 {[%clk 00:22:56]} {[%emt 00:00:19]} b1=Q {[%clk 00:29:14]} {[%emt
00:00:15]} 35. Rd6 {[%clk 00:22:42]} {[%emt 00:00:39]} Rd1 {[%clk 00:29:03]}
{[%emt 00:00:46]} 36. Kg2 {[%clk 00:22:14]} {[%emt 00:00:58]} Rxf1 {[%clk
00:28:40]} {[%emt 00:00:55]} 37. h4 {[%clk 00:21:57]} {[%emt 00:00:46]} Rg1+
{[%clk 00:28:47]} {[%emt 00:00:22]} 38. Kh2 {[%clk 00:20:38]} {[%emt 00:01:45]}
Rh1+ {[%clk 00:28:59]} {[%emt 00:00:22]} 39. Kg2 {[%clk 00:20:46]} {[%emt
00:00:21]} Qf1# {[%clk 00:29:10]} {[%emt 00:00:21]} 0-1

[Event "Latvijas 2022. gada jauniešu čempionāta fināls"]
[Site "Riga, Latvia"]
[Date "2022.06.16"]
[Round "8.17"]
[White "Steiners, Emils"]
[Black "Aleksejevs, Daniils"]
[Result "1-0"]
[TimeControl "3600+30"]
[WhiteElo "1601"]
[BlackElo "1197"]

1. e4 {[%clk 01:00:57]} {[%emt 00:00:02]} c5 {[%clk 01:00:59]} {[%emt
00:00:01]} 2. d4 {[%clk 01:01:16]} {[%emt 00:00:11]} cxd4 {[%clk 01:01:25]}
{[%emt 00:00:05]} 3. c3 {[%clk 01:01:40]} {[%emt 00:00:06]} dxc3 {[%clk
01:01:48]} {[%emt 00:00:07]} 4. Nxc3 {[%clk 01:02:04]} {[%emt 00:00:06]} e6
{[%clk 01:02:14]} {[%emt 00:00:03]} 5. Nf3 {[%clk 01:02:24]} {[%emt 00:00:11]}
a6 {[%clk 01:02:37]} {[%emt 00:00:07]} 6. Bc4 {[%clk 01:02:48]} {[%emt
00:00:04]} b5 {[%clk 01:02:58]} {[%emt 00:00:10]} 7. Bb3 {[%clk 01:03:14]}
{[%emt 00:00:04]} Bb7 {[%clk 01:02:59]} {[%emt 00:00:30]} 8. O-O {[%clk
01:03:38]} {[%emt 00:00:06]} Ne7 {[%clk 01:02:59]} {[%emt 00:00:29]} 9. Re1
{[%clk 01:03:38]} {[%emt 00:00:30]} Ng6 {[%clk 01:02:48]} {[%emt 00:00:40]} 10.
Nd5 {[%clk 00:56:27]} {[%emt 00:07:42]} Nc6 {[%clk 00:48:15]} {[%emt 00:15:04]}
11. Be3 {[%clk 00:51:57]} {[%emt 00:05:00]} d6 {[%clk 00:36:34]} {[%emt
00:12:11]} 12. Bb6 {[%clk 00:51:45]} {[%emt 00:00:42]} Qc8 {[%clk 00:32:06]}
{[%emt 00:04:57]} 13. Nc7+ {[%clk 00:51:43]} {[%emt 00:00:32]} Ke7 {[%clk
00:31:28]} {[%emt 00:01:08]} 14. Nxa8 {[%clk 00:51:02]} {[%emt 00:01:10]} Qxa8
{[%clk 00:31:34]} {[%emt 00:00:25]} 15. Rc1 {[%clk 00:47:28]} {[%emt 00:04:04]}
Kd7 {[%clk 00:30:35]} {[%emt 00:01:29]} 16. Qd2 {[%clk 00:44:28]} {[%emt
00:03:16]} h5 {[%clk 00:28:52]} {[%emt 00:02:28]} 17. Red1 {[%clk 00:44:06]}
{[%emt 00:00:51]} f6 {[%clk 00:27:37]} {[%emt 00:01:45]} 18. Nd4 {[%clk
00:32:49]} {[%emt 00:11:48]} e5 {[%clk 00:23:05]} {[%emt 00:04:53]} 19. Nf5
{[%clk 00:32:18]} {[%emt 00:01:04]} Qb8 {[%clk 00:21:44]} {[%emt 00:01:56]} 20.
Bc5 {[%clk 00:30:25]} {[%emt 00:02:23]} Nd4 {[%clk 00:20:33]} {[%emt 00:01:42]}
21. Bxd4 {[%clk 00:30:30]} {[%emt 00:00:25]} Bxe4 {[%clk 00:19:49]} {[%emt
00:01:13]} 22. Ng3 {[%clk 00:30:39]} {[%emt 00:00:21]} Bxg2 {[%clk 00:19:13]}
{[%emt 00:01:06]} 23. Kxg2 {[%clk 00:14:56]} {[%emt 00:16:13]} Qb7+ {[%clk
00:13:56]} {[%emt 00:05:48]} 24. Kf1 {[%clk 00:10:32]} {[%emt 00:04:52]} h4
{[%clk 00:12:38]} {[%emt 00:01:48]} 25. Qe2 {[%clk 00:07:34]} {[%emt 00:03:28]}
hxg3 {[%clk 00:09:46]} {[%emt 00:03:20]} 26. Qg4+ {[%clk 00:06:44]} {[%emt
00:01:23]} Kd8 {[%clk 00:04:21]} {[%emt 00:05:55]} 27. Bb6+ {[%clk 00:06:56]}
{[%emt 00:00:18]} Ke8 {[%clk 00:03:13]} {[%emt 00:01:38]} 28. Rc8+ {[%clk
00:07:19]} {[%emt 00:00:07]} Qxc8 {[%clk 00:03:22]} {[%emt 00:00:22]} 29. Qxc8+
{[%clk 00:07:44]} {[%emt 00:00:04]} Ke7 {[%clk 00:03:32]} {[%emt 00:00:20]} 30.
Qe6# {[%clk 00:08:05]} {[%emt 00:00:09]} 1-0

[Event "Latvijas 2022. gada jauniešu čempionāta fināls"]
[Site "Riga, Latvia"]
[Date "2022.06.16"]
[Round "8.18"]
[White "Gaidis, Edvards"]
[Black "Tolmacevs, Romans"]
[Result "0-1"]
[TimeControl "3600+30"]
[WhiteElo "1190"]
[BlackElo "1466"]

1. e4 {[%clk 01:00:57]} {[%emt 00:00:02]} c6 {[%clk 01:00:59]} {[%emt
00:00:01]} 2. d4 {[%clk 01:01:19]} {[%emt 00:00:09]} d5 {[%clk 01:01:28]} 3. e5
{[%clk 01:01:42]} {[%emt 00:00:07]} Bf5 {[%clk 01:01:57]} {[%emt 00:00:02]} 4.
h4 {[%clk 01:02:03]} {[%emt 00:00:08]} h6 {[%clk 01:02:25]} {[%emt 00:00:02]} 5.
g4 {[%clk 01:02:18]} {[%emt 00:00:14]} Bd7 {[%clk 01:02:53]} {[%emt 00:00:02]}
6. h5 {[%clk 01:02:33]} {[%emt 00:00:14]} e6 {[%clk 01:03:07]} {[%emt
00:00:18]} 7. f4 {[%clk 01:02:52]} {[%emt 00:00:09]} c5 {[%clk 01:03:24]}
{[%emt 00:00:16]} 8. Nf3 {[%clk 01:03:02]} {[%emt 00:00:17]} Qb6 {[%clk
01:03:09]} {[%emt 00:00:47]} 9. c3 {[%clk 01:03:10]} {[%emt 00:00:21]} Nc6
{[%clk 01:03:21]} {[%emt 00:00:19]} 10. Qb3 {[%clk 01:03:07]} {[%emt 00:00:33]}
Qa5 {[%clk 00:56:06]} {[%emt 00:07:45]} 11. Bd2 {[%clk 01:02:13]} {[%emt
00:01:22]} c4 {[%clk 00:56:20]} {[%emt 00:00:18]} 12. Qc2 {[%clk 01:02:35]}
{[%emt 00:00:08]} O-O-O {[%clk 00:53:28]} {[%emt 00:03:23]} 13. b3 {[%clk
01:02:49]} {[%emt 00:00:14]} cxb3 {[%clk 00:53:05]} {[%emt 00:00:54]} 14. Qxb3
{[%clk 01:03:08]} {[%emt 00:00:09]} Qc7 {[%clk 00:50:11]} {[%emt 00:03:26]} 15.
Bd3 {[%clk 01:02:26]} {[%emt 00:01:11]} Na5 {[%emt 00:04:34]} 16. Qc2 {[%clk
01:01:47]} {[%emt 00:00:30]} Nc4 {[%clk 00:46:27]} {[%emt 00:00:49]} 17. f5
{[%clk 01:01:24]} {[%emt 00:00:51]} f6 {[%clk 00:37:02]} {[%emt 00:09:57]} 18.
fxe6 {[%clk 00:59:36]} {[%emt 00:02:17]} Bxe6 {[%clk 00:37:30]} {[%emt
00:00:03]} 19. Bf5 {[%clk 00:59:20]} {[%emt 00:00:43]} Qd7 {[%clk 00:36:28]}
{[%emt 00:01:36]} 20. Bxe6 {[%clk 00:59:06]} {[%emt 00:00:42]} Qxe6 {[%clk
00:36:56]} {[%emt 00:00:04]} 21. Qf5 {[%clk 00:59:25]} {[%emt 00:00:09]} Re8
{[%clk 00:34:27]} {[%emt 00:03:02]} 22. O-O {[%clk 00:58:53]} {[%emt 00:01:01]}
Qxf5 {[%clk 00:32:51]} {[%emt 00:02:07]} 23. gxf5 {[%clk 00:59:01]} {[%emt
00:00:21]} fxe5 {[%clk 00:33:19]} {[%emt 00:00:03]} 24. dxe5 {[%clk 00:59:02]}
{[%emt 00:00:27]} Nxe5 {[%clk 00:33:03]} {[%emt 00:00:47]} 25. Bf4 {[%clk
00:58:50]} {[%emt 00:00:39]} Nxf3+ {[%clk 00:33:08]} {[%emt 00:00:28]} 26. Rxf3
{[%clk 00:59:10]} {[%emt 00:00:10]} Bc5+ {[%clk 00:33:25]} {[%emt 00:00:13]} 27.
Kf1 {[%clk 00:59:01]} {[%emt 00:00:36]} Nf6 {[%clk 00:33:34]} {[%emt 00:00:24]}
28. Nd2 {[%clk 00:59:06]} {[%emt 00:00:24]} Nxh5 {[%clk 00:30:45]} {[%emt
00:03:20]} 29. Nb3 {[%clk 00:59:04]} {[%emt 00:00:33]} Bb6 {[%clk 00:30:36]}
{[%emt 00:00:39]} 30. Bd6 {[%clk 00:59:16]} {[%emt 00:00:16]} Kd7 {[%clk
00:30:35]} {[%emt 00:00:33]} 31. Ba3 {[%clk 00:59:26]} {[%emt 00:00:20]} Re5
{[%clk 00:27:58]} {[%emt 00:03:06]} 32. Rd1 {[%clk 00:59:39]} {[%emt 00:00:17]}
Kc6 {[%clk 00:24:33]} {[%emt 00:03:55]} 33. Nd4+ {[%clk 00:59:55]} {[%emt
00:00:14]} Bxd4 {[%clk 00:24:54]} {[%emt 00:00:09]} 34. cxd4 {[%clk 01:00:20]}
{[%emt 00:00:05]} Rxf5 {[%clk 00:23:44]} {[%emt 00:01:40]} 35. Rc1+ {[%clk
01:00:07]} {[%emt 00:00:43]} Kd7 {[%clk 00:24:11]} {[%emt 00:00:02]} 0-1

[Event "Latvijas 2022. gada jauniešu čempionāta fināls"]
[Site "Riga, Latvia"]
[Date "2022.06.16"]
[Round "8.19"]
[White "Varpins, Kristians"]
[Black "Freibergs, Filips"]
[Result "0-1"]
[TimeControl "3600+30"]
[WhiteElo "1374"]
[BlackElo "1250"]

1. e4 {[%clk 01:00:58]} e5 {[%clk 01:00:27]} {[%emt 00:00:34]} 2. Nf3 {[%clk
01:01:22]} {[%emt 00:00:06]} Nc6 {[%clk 01:00:34]} {[%emt 00:00:24]} 3. Nc3
{[%clk 01:01:43]} {[%emt 00:00:08]} d6 {[%clk 01:00:52]} {[%emt 00:00:12]} 4.
d4 {[%clk 01:02:00]} {[%emt 00:00:14]} exd4 {[%clk 01:01:13]} {[%emt 00:00:09]}
5. Nxd4 {[%clk 01:02:24]} {[%emt 00:00:06]} Nf6 {[%clk 01:01:08]} {[%emt
00:00:35]} 6. Nxc6 {[%clk 01:02:06]} {[%emt 00:00:48]} bxc6 {[%clk 01:01:36]}
{[%emt 00:00:01]} 7. Bc4 {[%clk 01:01:44]} {[%emt 00:00:51]} Be7 {[%clk
01:01:38]} {[%emt 00:00:30]} 8. h3 {[%clk 01:00:30]} {[%emt 00:01:43]} O-O
{[%clk 01:01:02]} {[%emt 00:01:06]} 9. O-O {[%clk 00:59:38]} {[%emt 00:01:22]}
Bb7 {[%clk 01:00:00]} {[%emt 00:01:32]} 10. Re1 {[%clk 00:46:37]} {[%emt
00:13:30]} d5 {[%clk 00:54:45]} {[%emt 00:05:46]} 11. exd5 {[%clk 00:41:30]}
{[%emt 00:05:38]} cxd5 {[%clk 00:54:40]} {[%emt 00:00:34]} 12. Bd3 {[%clk
00:37:21]} {[%emt 00:04:38]} c5 {[%clk 00:43:04]} {[%emt 00:12:07]} 13. Bg5
{[%clk 00:14:54]} {[%emt 00:22:56]} h6 {[%clk 00:38:56]} {[%emt 00:04:38]} 14.
Bh4 {[%emt 00:01:21]} a6 {[%clk 00:37:11]} {[%emt 00:02:13]} 15. a3 {[%clk
00:08:33]} {[%emt 00:06:03]} Re8 {[%clk 00:36:45]} {[%emt 00:00:55]} 16. Qf3
{[%clk 00:05:17]} {[%emt 00:03:46]} c4 {[%clk 00:33:48]} {[%emt 00:03:29]} 17.
Bxc4 {[%clk 00:04:35]} {[%emt 00:01:12]} Qb6 {[%clk 00:30:26]} {[%emt
00:03:47]} 18. Bd3 {[%clk 00:01:24]} {[%emt 00:03:45]} Qxb2 {[%clk 00:29:13]}
{[%emt 00:01:43]} 19. Bxf6 {[%clk 00:00:45]} {[%emt 00:01:10]} Bxf6 {[%clk
00:29:33]} {[%emt 00:00:09]} 20. Rxe8+ {[%clk 00:00:33]} {[%emt 00:00:42]} Rxe8
{[%clk 00:30:02]} {[%emt 00:00:02]} 21. Rb1 {[%clk 00:00:36]} {[%emt 00:00:27]}
Qxc3 {[%clk 00:27:40]} {[%emt 00:02:51]} 22. Rxb7 {[%clk 00:00:53]} {[%emt
00:00:13]} Qc6 {[%clk 00:27:49]} {[%emt 00:00:20]} 23. Rb1 {[%clk 00:00:39]}
{[%emt 00:00:44]} Qd6 {[%clk 00:26:31]} {[%emt 00:01:48]} 24. Kh1 {[%clk
00:00:37]} {[%emt 00:00:32]} Bd4 {[%clk 00:22:03]} {[%emt 00:04:58]} 25. Qf5
{[%clk 00:00:37]} {[%emt 00:00:31]} g6 {[%clk 00:22:09]} {[%emt 00:00:24]} 26.
Qf3 {[%clk 00:00:48]} {[%emt 00:00:17]} Kg7 {[%clk 00:22:03]} {[%emt 00:00:37]}
27. g3 {[%clk 00:00:37]} {[%emt 00:00:41]} Qxa3 {[%clk 00:21:51]} {[%emt
00:00:43]} 28. Qxd5 {[%clk 00:00:34]} {[%emt 00:00:34]} Bxf2 {[%clk 00:22:07]}
{[%emt 00:00:13]} 29. Qf3 {[%clk 00:00:34]} {[%emt 00:00:29]} Re1+ {[%clk
00:20:40]} {[%emt 00:01:58]} 30. Rxe1 {[%clk 00:00:59]} {[%emt 00:00:05]} Bxe1
{[%clk 00:21:09]} {[%emt 00:00:01]} 31. Kg2 {[%clk 00:00:41]} {[%emt 00:00:49]}
Qd6 {[%clk 00:19:43]} {[%emt 00:01:54]} 32. c4 {[%clk 00:00:32]} {[%emt
00:00:41]} a5 {[%clk 00:18:14]} {[%emt 00:01:58]} 33. Qe3 {[%clk 00:00:37]}
{[%emt 00:00:25]} Bb4 {[%clk 00:18:26]} {[%emt 00:00:12]} 34. Qe4 {[%clk
00:00:43]} {[%emt 00:00:30]} Bc5 {[%clk 00:17:57]} {[%emt 00:00:59]} 35. Qd5
{[%clk 00:00:35]} {[%emt 00:00:38]} Qxd5+ {[%clk 00:16:40]} {[%emt 00:01:46]}
36. cxd5 {[%clk 00:01:02]} {[%emt 00:00:04]} Kf6 {[%clk 00:16:21]} {[%emt
00:00:49]} 37. Kf3 {[%clk 00:00:35]} {[%emt 00:00:58]} Ke5 {[%clk 00:16:40]}
{[%emt 00:00:06]} 38. Bc4 {[%clk 00:00:55]} {[%emt 00:00:14]} Kd4 {[%clk
00:15:57]} {[%emt 00:01:13]} 39. Ba2 {[%clk 00:01:13]} {[%emt 00:00:12]} Bd6
{[%clk 00:14:21]} {[%emt 00:02:06]} 40. h4 {[%clk 00:00:35]} {[%emt 00:01:08]}
a4 {[%clk 00:12:46]} {[%emt 00:02:06]} 41. g4 {[%clk 00:00:32]} {[%emt
00:00:32]} a3 {[%clk 00:12:39]} {[%emt 00:00:37]} 42. h5 {[%clk 00:00:43]}
{[%emt 00:00:19]} g5 {[%clk 00:11:50]} {[%emt 00:01:19]} 43. Bb3 {[%clk
00:00:48]} {[%emt 00:00:24]} Ke5 {[%clk 00:07:57]} {[%emt 00:04:24]} 44. Ba2
{[%clk 00:00:41]} {[%emt 00:00:38]} f5 {[%clk 00:07:55]} {[%emt 00:00:30]} 45.
Bb3 {[%clk 00:00:40]} {[%emt 00:00:31]} f4 {[%clk 00:08:08]} {[%emt 00:00:18]}
46. Ba2 {[%clk 00:00:38]} {[%emt 00:00:32]} Kd4 {[%clk 00:08:08]} {[%emt
00:00:27]} 47. Bb3 {[%clk 00:00:50]} {[%emt 00:00:22]} Kc3 {[%clk 00:08:27]}
{[%emt 00:00:10]} 48. Ba2 {[%clk 00:01:10]} {[%emt 00:00:10]} Kb2 {[%clk
00:08:53]} {[%emt 00:00:04]} 49. Bc4 {[%clk 00:01:18]} {[%emt 00:00:22]} a2
{[%clk 00:09:22]} {[%emt 00:00:02]} 50. Bxa2 {[%clk 00:01:32]} {[%emt
00:00:15]} Kxa2 {[%clk 00:09:51]} {[%emt 00:00:02]} 51. Ke4 {[%clk 00:01:17]}
{[%emt 00:00:43]} Kb3 {[%clk 00:10:19]} {[%emt 00:00:03]} 52. Kd3 {[%clk
00:00:46]} {[%emt 00:01:02]} Kb4 {[%clk 00:10:11]} {[%emt 00:00:37]} 53. Ke4
{[%clk 00:00:59]} {[%emt 00:00:17]} Kc4 {[%clk 00:10:35]} {[%emt 00:00:06]} 54.
Kf5 {[%clk 00:01:06]} {[%emt 00:00:23]} f3 {[%clk 00:10:32]} {[%emt 00:00:33]}
55. Ke4 {[%clk 00:01:13]} {[%emt 00:00:23]} f2 {[%clk 00:10:59]} {[%emt
00:00:03]} 56. Ke3 {[%clk 00:01:27]} {[%emt 00:00:16]} f1=Q {[%clk 00:11:22]}
{[%emt 00:00:06]} 0-1